bitfinex/quotes_SOLUSD_20250803
["timestamp","ask_amount","ask_price","bid_price","bid_amount"]
[1754256941650,0.74,162.22,162.21,74.9224093]
[1754256945828,0.74,162.22,162.21,100.9224093]
[1754256950465,0.74,162.22,162.21,94.75756127]
[1754256953261,0.74,162.22,162.21,88.79175277]
[1754256953437,0.74,162.22,162.21,94.75756127]
[1754256965071,0.74,162.22,162.21,19.15175277]
[1754256965274,0.74,162.22,162.21,2.470584]
[1754256965472,0.79137027,162.22,162.21,42.96]
[1754256965656,0.79137027,162.22,162.21,48.9258085]
[1754256965854,0.74,162.22,162.21,48.9258085]
[1754256966052,0.79137027,162.22,162.21,48.9258085]
[1754256966266,0.79137027,162.22,162.21,61.493963]
[1754256967156,0.79137027,162.22,162.21,78.27864697]
[1754256976269,0.79137027,162.22,162.21,59.74468397]
[1754256976777,0.08137027,162.22,162.21,65.71049297]
[1754256976983,0.08137027,162.22,162.21,59.74468397]
[1754256977170,0.08137027,162.22,162.21,66.32697777]
[1754256977355,0.08137027,162.22,162.21,67.01697777]
[1754256977559,0.08137027,162.22,162.21,61.05116877]
[1754256977759,0.08137027,162.22,162.21,60.36116877]
[1754256979569,0.08137027,162.22,162.21,67.01697727]
[1754256979880,0.03,162.22,162.21,67.01697727]
[1754256980957,0.03,162.22,162.21,73.1818253]
[1754256981481,0.03,162.22,162.21,75.6524103]
[1754256983888,0.03,162.22,162.21,69.48756227]
[1754256985764,0.03,162.22,162.21,63.52175377]
[1754256985959,0.03,162.22,162.21,69.48756227]
[1754256986485,0.03,162.22,162.21,68.79756227]
[1754256991471,0.75,162.22,162.21,68.79756227]
[1754256993982,0.03,162.22,162.21,68.85756227]
[1754257000404,0.03,162.22,162.21,94.85756227]
[1754257007311,0.03,162.22,162.21,88.89175377]
[1754257007488,0.72,162.22,162.21,94.85756227]
[1754257007673,0.72,162.22,162.21,45.31526897]
[1754257007874,0.72,162.22,162.21,88.21526897]
[1754257008098,0.72,162.22,162.21,42.96]
[1754257008292,0.77116161,162.22,162.21,42.96]
[1754257010278,5.39030122,162.22,162.21,42.96]
[1754257011279,11.35610972,162.22,162.21,42.96]
[1754257011696,5.39030122,162.22,162.21,42.96]
[1754257012283,0.77116161,162.22,162.21,42.96]
[1754257012484,11.35518919,162.22,162.21,42.96]
[1754257014202,11.30402758,162.22,162.21,42.96]
[1754257014710,11.35521446,162.22,162.21,42.96]
[1754257017782,11.35521446,162.22,162.21,0.06]
[1754257020337,41.50594678,162.22,162.21,0.06]
[1754257020491,41.4547599,162.22,162.21,0.06]
[1754257020817,41.4547599,162.22,162.19,0.06]
[1754257020818,26.0,162.2,162.19,0.06]
[1754257021026,60.44726158,162.2,162.19,0.06]
[1754257021320,5.9658085,162.19,162.18,0.06]
[1754257021484,10.58402758,162.19,162.18,0.06]
[1754257021684,11.26843552,162.19,162.18,0.06]
[1754257022589,11.31961102,162.19,162.18,0.06]
[1754257024404,11.31961102,162.19,162.16,0.06]
[1754257024405,26.0,162.17,162.16,0.06]
[1754257024603,36.57843552,162.17,162.16,0.06]
[1754257024801,37.26843552,162.17,162.16,0.06]
[1754257025006,37.31961614,162.17,162.16,0.06]
[1754257025198,37.26843552,162.17,162.16,0.06]
[1754257026615,37.30479024,162.17,162.16,0.06]
[1754257028413,35.92607791,162.17,162.16,0.06]
[1754257040999,26.0,162.15,162.14,0.06]
[1754257041203,31.9658085,162.15,162.14,0.06]
[1754257041413,32.74592408,162.15,162.14,0.06]
[1754257043823,32.07592408,162.15,162.14,0.76]
[1754257044010,31.9658085,162.15,162.14,0.06]
[1754257045619,32.6358085,162.15,162.14,0.06]
[1754257045811,32.76895536,162.15,162.14,0.06]
[1754257046196,32.6358085,162.15,162.14,0.06]
[1754257046415,32.76895536,162.15,162.14,0.06]
[1754257048597,35.98837393,162.15,162.14,0.06]
[1754257049415,9.98837393,162.15,162.14,0.06]
[1754257049598,14.58349208,162.15,162.14,0.06]
[1754257050931,14.58539718,162.15,162.14,0.06]
[1754257053814,14.59118365,162.15,162.14,0.06]
[1754257061135,14.45803679,162.15,162.14,0.06]
[1754257063523,18.61739914,162.15,162.14,0.06]
[1754257064931,14.01458942,162.15,162.14,0.06]
[1754257065112,18.84889474,162.15,162.14,0.06]
[1754257073612,18.17889474,162.15,162.14,0.06]
[1754257073816,17.96921837,162.15,162.14,0.73]
[1754257074223,17.99764678,162.15,162.14,0.73]
[1754257076845,17.99764678,162.15,162.14,0.06]
[1754257086644,18.70764678,162.15,162.14,0.06]
[1754257086848,17.99764678,162.15,162.14,0.06]
[1754257089956,18.70764678,162.15,162.14,0.06]
[1754257090438,17.99764678,162.15,162.14,0.06]
[1754257090839,18.70764678,162.15,162.14,0.06]
[1754257091259,17.99764678,162.15,162.14,0.06]
[1754257092764,17.99764678,162.15,162.14,0.73]
[1754257093269,17.99764678,162.15,162.14,0.06]
[1754257093647,18.00511414,162.15,162.14,0.06]
[1754257094673,12.03930564,162.15,162.14,0.06]
[1754257094847,18.00511414,162.15,162.14,0.06]
[1754257095159,18.00493512,162.15,162.14,0.06]
[1754257096870,7.87247593,162.15,162.14,0.06]
[1754257097066,13.83828443,162.15,162.14,0.06]
[1754257098470,7.87247593,162.15,162.14,0.06]
[1754257098874,13.83828443,162.15,162.14,0.06]
[1754257099047,14.53828443,162.15,162.14,0.06]
[1754257099760,18.70418279,162.15,162.14,0.06]
[1754257101673,14.53828443,162.15,162.14,0.06]
[1754257108073,8.57247593,162.15,162.14,0.06]
[1754257108270,14.53828443,162.15,162.14,0.06]
[1754257111275,14.54294991,162.15,162.14,0.06]
[1754257112077,7.87714141,162.15,162.14,0.06]
[1754257112657,8.57714141,162.15,162.14,0.06]
[1754257116780,12.74259814,162.15,162.14,0.06]
[1754257119583,12.74324347,162.15,162.14,0.06]
[1754257133300,18.70905197,162.15,162.14,0.06]
[1754257133602,23.88825114,162.15,162.14,0.06]
[1754257133814,23.94874564,162.15,162.14,0.06]
[1754257133974,26.42207964,162.15,162.14,0.06]
[1754257134375,29.40693475,162.15,162.14,0.06]
[1754257134678,29.66911565,162.15,162.13,0.06]
[1754257134877,20.67909993,162.14,162.13,0.06]
[1754257135082,20.73959443,162.14,162.13,0.06]
[1754257135293,23.21323443,162.14,162.13,0.06]
[1754257136289,18.00559919,162.14,162.13,0.06]
[1754257136684,18.00559919,162.14,162.12,0.06]
[1754257136884,41.47146469,162.13,162.12,0.06]
[1754257137083,58.0747938,162.13,162.12,0.06]
[1754257137398,74.8594778,162.13,162.12,0.06]
[1754257137597,78.07956179,162.13,162.12,0.06]
[1754257139583,78.14005629,162.13,162.12,0.06]
[1754257142501,73.51050216,162.13,162.12,0.06]
[1754257142704,78.12671923,162.13,162.12,0.06]
[1754257145611,52.12671923,162.13,162.12,0.06]
[1754257145999,95.06622473,162.13,162.12,0.06]
[1754257146198,52.06622473,162.13,162.12,0.06]
[1754257146419,95.11228948,162.13,162.12,0.06]
[1754257147121,95.10817584,162.13,162.12,0.06]
[1754257147826,45.43236734,162.13,162.12,0.06]
[1754257147989,24.48158128,162.13,162.12,0.75]
[1754257148312,24.48158128,162.13,162.12,0.06]
[1754257148511,30.44738978,162.13,162.12,0.06]
[1754257149514,24.48158128,162.13,162.12,0.06]
[1754257150429,24.48158128,162.13,162.12,0.75]
[1754257150592,24.43551653,162.13,162.12,0.75]
[1754257150795,24.48807467,162.13,162.12,0.75]
[1754257151302,19.87597124,162.13,162.12,0.75]
[1754257151488,24.48667763,162.13,162.12,0.75]
[1754257153701,21.26659364,162.13,162.12,0.75]
[1754257153905,16.65588725,162.13,162.12,0.75]
[1754257154110,16.65588725,162.13,162.12,6.7158085]
[1754257158321,16.60332911,162.13,162.12,6.7158085]
[1754257158710,16.65296523,162.13,162.12,6.7158085]
[1754257159428,16.65296523,162.13,162.12,23.50049247]
[1754257159730,16.65296523,162.13,162.12,40.15345747]
[1754257159933,16.60332911,162.13,162.12,40.15345747]
[1754257160438,0.04963612,162.15,162.12,40.15345747]
[1754257160622,0.04963612,162.15,162.14,22.75049247]
[1754257160822,0.04963612,162.15,162.14,65.71049247]
[1754257161032,0.04963612,162.15,162.14,66.43049247]
[1754257168938,0.04963612,162.15,162.14,65.71049247]
[1754257169135,0.04963612,162.15,162.14,66.43049247]
[1754257169340,0.03,162.16,162.14,66.43049247]
[1754257169642,0.03,162.16,162.15,5.9658085]
[1754257170043,0.03,162.16,162.15,6.6858085]
[1754257170249,0.08095103,162.16,162.15,6.6858085]
[1754257172250,0.08095103,162.16,162.15,5.9658085]
[1754257173947,0.80095103,162.16,162.15,5.9658085]
[1754257179349,0.08095103,162.16,162.15,5.9658085]
[1754257179938,3.2989873,162.16,162.15,5.9658085]
[1754257180853,4.0189873,162.16,162.15,5.9658085]
[1754257181452,3.2989873,162.16,162.15,5.9658085]
[1754257186484,4.0189873,162.16,162.15,5.9658085]
[1754257186933,3.2989873,162.16,162.15,5.9658085]
[1754257192674,4.0189873,162.16,162.15,5.9658085]
[1754257193579,3.2989873,162.16,162.15,5.9658085]
[1754257200251,0.08095103,162.16,162.15,24.01720539]
[1754257200662,0.03,162.16,162.15,65.65049247]
[1754257200966,5.42368358,162.16,162.15,48.8658085]
[1754257201275,5.42477603,162.16,162.12,6.0258085]
[1754257201464,5.34483937,162.15,162.14,2.471806]
[1754257201669,5.39519869,162.15,162.14,42.9]
[1754257203371,5.3981881,162.15,162.14,42.9]
[1754257204662,0.77035932,162.15,162.14,42.9]
[1754257204981,5.39934359,162.15,162.14,42.9]
[1754257206648,4.67934359,162.15,162.14,48.8658085]
[1754257206865,4.62898427,162.15,162.14,48.8658085]
[1754257207478,4.67960986,162.15,162.14,48.8658085]
[1754257207985,4.67960986,162.15,162.14,42.9]
[1754257209272,4.67814646,162.15,162.14,49.5158085]
[1754257209781,4.67814646,162.15,162.14,48.8658085]
[1754257212085,4.67729103,162.15,162.14,48.8658085]
[1754257212972,4.67729103,162.15,162.14,42.9]
[1754257213285,4.67729103,162.15,162.14,48.8658085]
[1754257213779,4.67729103,162.15,162.14,42.9]
[1754257214982,0.05062559,162.15,162.14,42.9]
[1754257215175,4.67709154,162.15,162.14,42.9]
[1754257220892,7.89538232,162.15,162.14,42.9]
[1754257227896,7.92538232,162.15,162.14,42.9]
[1754257242014,7.92538232,162.15,162.14,48.8658085]
[1754257242210,0.08062559,162.15,162.14,66.35049247]
[1754257242410,0.03,162.15,162.14,66.35049247]
[1754257251417,0.03,162.15,162.14,66.96724342]
[1754257256718,0.03,162.15,162.14,73.13475297]
[1754257259933,0.03,162.15,162.14,99.13475297]
[1754257262936,0.03,162.15,162.14,73.13475297]
[1754257266456,0.03,162.15,162.14,99.13475297]
[1754257270057,0.03,162.15,162.14,98.43475297]
[1754257270532,0.03,162.15,162.14,92.26724342]
[1754257270739,0.71,162.15,162.14,92.26724342]
[1754257271259,0.03,162.15,162.14,92.26724342]
[1754257272955,0.71,162.15,162.14,92.26724342]
[1754257273341,0.71,162.15,162.14,22.75049247]
[1754257273544,0.71,162.15,162.13,0.06]
[1754257273545,6.6758085,162.15,162.13,0.06]
[1754257273747,26.0,162.12,162.11,0.06]
[1754257273934,26.0,162.1,162.04,42.98]
[1754257274130,5.9658085,162.08,162.03,42.77]
[1754257274335,4.15659136,162.09,162.04,5.9658085]
[1754257274336,5.9658085,162.09,162.04,5.9658085]
[1754257274541,26.0,162.1,162.05,48.9658085]
[1754257274753,3.21973974,162.11,162.09,5.9658085]
[1754257274952,3.21973974,162.11,162.1,43.02]
[1754257275142,3.21982941,162.14,162.1,43.02]
[1754257276157,0.05053542,162.13,162.11,22.75049247]
[1754257276340,0.05053542,162.13,162.12,65.79049247]
[1754257276539,3.21982941,162.14,162.13,16.78468397]
[1754257276741,3.27037575,162.14,162.13,22.75049247]
[1754257276950,3.27037575,162.14,162.13,19.53229148]
[1754257279467,9.23618425,162.14,162.09,16.78468397]
[1754257279654,5.9658085,162.1,162.04,5.9658085]
[1754257279856,5.9658085,162.1,162.06,16.78468397]
[1754257280049,0.05054634,162.09,162.07,43.04]
[1754257280463,0.05054634,162.09,162.08,16.78468397]
[1754257282050,0.05054634,162.09,162.04,9.236185]
[1754257282255,6.01635484,162.09,162.05,43.18]
[1754257282659,9.34467395,162.09,162.05,43.18]
[1754257282860,0.05054143,162.08,162.05,43.18]
[1754257286742,0.05054143,162.08,162.06,10.04467395]
[1754257287070,0.05054143,162.08,162.07,69.28935792]
[1754257287272,35.34467395,162.14,162.07,69.98935792]
[1754257287440,0.05054364,162.09,162.08,26.12935792]
[1754257287645,35.34467395,162.14,162.08,26.82935792]
[1754257287871,0.05054364,162.13,162.09,43.2]
[1754257288067,0.05054364,162.13,162.09,43.9]
[1754257288565,0.05054364,162.13,162.11,16.78468397]
[1754257288872,0.03,162.15,162.13,16.78468397]
[1754257289084,0.05054364,162.14,162.12,17.48468397]
[1754257289249,0.05054364,162.14,162.13,60.70468397]
[1754257290379,0.05054364,162.14,162.13,70.04935792]
[1754257291195,0.03,162.15,162.14,16.78468397]
[1754257291352,0.1,162.29,162.18,16.78468397]
[1754257291553,0.1,162.29,162.21,26.12935792]
[1754257291768,0.1,162.29,162.21,70.08584272]
[1754257291971,0.1,162.29,162.23,26.12935792]
[1754257292175,0.1,162.29,162.23,69.46935792]
[1754257292360,0.1,162.29,162.23,70.16935792]
[1754257292682,0.1,162.29,162.23,17.48468397]
[1754257292683,9.54467395,162.28,162.23,17.48468397]
[1754257292885,0.08054264,162.24,162.23,60.12468397]
[1754257293072,0.03,162.24,162.23,60.12468397]
[1754257296387,0.08054264,162.24,162.23,60.12468397]
[1754257298954,0.08054264,162.24,162.23,60.82468397]
[1754257299148,0.08054264,162.24,162.23,17.48468397]
[1754257299384,0.08054264,162.24,162.23,60.78468397]
[1754257300192,0.08054264,162.24,162.23,57.9355304]
[1754257304935,0.05779845,162.24,162.23,57.9355304]
[1754257308518,0.05779845,162.24,162.23,57.9455304]
[1754257310811,0.05779845,162.24,162.23,57.2355304]
[1754257310998,0.05779845,162.24,162.23,57.9455304]
[1754257328018,0.05779845,162.24,162.23,67.29020435]
[1754257328427,0.05779845,162.24,162.23,57.9455304]
[1754257329912,0.05779845,162.24,162.23,67.29020435]
[1754257330536,0.05779845,162.24,162.23,57.9455304]
[1754257330841,0.05779845,162.24,162.23,67.29020435]
[1754257336663,0.05779845,162.24,162.23,63.91183524]
[1754257338047,0.05779845,162.24,162.23,57.9455304]
[1754257340459,0.05779845,162.24,162.23,63.91183524]
[1754257343761,0.05779845,162.24,162.23,70.07592326]
[1754257353578,0.03,162.24,162.23,70.07592326]
[1754257365510,0.03,162.24,162.23,64.10961842]
[1754257365822,0.03,162.24,162.23,70.07592326]
[1754257367205,0.03,162.24,162.23,64.10961842]
[1754257372002,0.03,162.24,162.23,57.2355304]
[1754257372605,0.06342764,162.24,162.23,57.2355304]
[1754257373991,0.06342764,162.24,162.23,57.9055304]
[1754257374408,0.06342764,162.24,162.23,57.2355304]
[1754257380308,0.06342764,162.24,162.23,57.9055304]
[1754257392321,0.06342764,162.24,162.23,63.87183524]
[1754257395327,0.06342764,162.24,162.23,57.9055304]
[1754257395632,0.06342764,162.24,162.23,63.87183524]
[1754257398411,0.06342764,162.24,162.23,57.9055304]
[1754257401430,0.06342764,162.24,162.23,63.87183524]
[1754257403633,0.06342764,162.24,162.23,57.9055304]
[1754257420815,10.85845063,162.24,162.22,0.06]
[1754257421016,10.79502299,162.23,162.22,0.06]
[1754257421224,10.79502299,162.23,162.22,42.96]
[1754257421426,10.63052319,162.23,162.22,42.96]
[1754257421624,10.83052319,162.23,162.22,42.96]
[1754257424839,4.86421835,162.23,162.22,42.96]
[1754257425030,10.83052319,162.23,162.22,42.96]
[1754257426947,10.63052319,162.23,162.22,42.96]
[1754257427850,10.83052319,162.23,162.22,42.96]
[1754257428218,10.63052319,162.23,162.22,42.96]
[1754257430648,4.66421835,162.23,162.22,0.06]
[1754257430850,10.63052319,162.23,162.22,42.96]
[1754257431539,4.66421835,162.23,162.22,42.96]
[1754257433832,4.66421835,162.23,162.22,43.65]
[1754257435054,4.62871815,162.23,162.22,43.65]
[1754257435650,4.6632857,162.23,162.22,43.65]
[1754257435857,4.64578737,162.23,162.22,43.65]
[1754257442128,6.00087239,162.23,162.22,43.65]
[1754257442450,36.80618965,162.23,162.22,0.06]
[1754257442646,36.84117689,162.23,162.22,0.06]
[1754257443625,36.84160176,162.23,162.22,0.06]
[1754257444448,14.99079219,162.23,162.22,0.06]
[1754257444651,26.0,162.22,162.21,0.06]
[1754257444851,40.92580495,162.22,162.21,0.06]
[1754257445035,5.96630484,162.21,162.2,0.06]
[1754257445241,10.77661452,162.21,162.2,0.06]
[1754257445956,10.81160176,162.21,162.2,0.06]
[1754257446255,10.82715716,162.21,162.2,0.06]
[1754257446560,6.21684748,162.21,162.2,0.06]
[1754257446743,10.82390391,162.21,162.2,0.06]
[1754257447637,14.96938261,162.21,162.2,0.06]
[1754257450259,5.96630484,162.15,162.14,42.9]
[1754257450465,10.57336127,162.15,162.14,42.9]
[1754257450647,10.57336127,162.15,162.14,43.59]
[1754257451159,10.57336127,162.15,162.14,42.9]
[1754257451330,36.57336127,162.15,162.14,42.9]
[1754257451863,36.60115972,162.15,162.14,42.9]
[1754257452163,36.60115972,162.15,162.13,0.69]
[1754257452356,10.57336127,162.14,162.11,0.69]
[1754257452559,5.96630484,162.13,162.12,0.69]
[1754257453157,5.99410329,162.13,162.12,0.69]
[1754257453447,5.96630484,162.13,162.12,0.69]
[1754257453764,5.96630484,162.13,162.11,0.71]
[1754257453948,5.96630484,162.12,162.11,0.71]
[1754257454344,5.99410329,162.12,162.11,0.71]
[1754257454739,0.02779845,162.12,162.11,0.71]
[1754257455064,31.96630484,162.16,162.11,0.71]
[1754257455261,0.05054264,162.12,162.11,0.71]
[1754257455770,5.96630484,162.14,162.11,0.71]
[1754257455946,0.05054264,162.12,162.11,0.71]
[1754257463976,0.05054264,162.12,162.11,0.77]
[1754257471870,6.21684748,162.12,162.11,0.06]
[1754257472071,10.80906666,162.12,162.11,0.06]
[1754257472265,30.59221918,162.12,162.11,0.06]
[1754257472467,31.99410329,162.12,162.11,0.06]
[1754257472671,26.0,162.12,162.11,0.06]
[1754257472979,31.99410329,162.12,162.11,0.06]
[1754257474075,36.58661702,162.12,162.11,0.06]
[1754257474785,36.78661702,162.12,162.11,0.06]
[1754257475662,36.58661702,162.12,162.11,0.06]
[1754257475867,36.58661702,162.12,162.11,0.77]
[1754257476163,36.55936265,162.12,162.11,0.77]
[1754257477192,36.59739599,162.12,162.11,0.06]
[1754257480492,36.79739599,162.12,162.11,0.06]
[1754257480862,36.75936265,162.12,162.11,0.06]
[1754257481089,36.79279029,162.12,162.11,0.06]
[1754257482002,36.79640652,162.12,162.11,0.06]
[1754257484579,36.59640652,162.12,162.11,0.76]
[1754257485105,36.56297888,162.12,162.11,0.76]
[1754257485699,36.59847908,162.12,162.11,0.76]
[1754257488000,36.61046358,162.12,162.11,0.76]
[1754257491137,36.61046358,162.12,162.11,0.06]
[1754257491709,36.61046358,162.12,162.11,0.76]
[1754257492218,40.76470634,162.12,162.11,0.76]
[1754257492729,36.61046358,162.12,162.11,0.76]
[1754257492894,40.76470714,162.12,162.11,0.76]
[1754257500547,40.96470714,162.12,162.11,0.06]
[1754257501034,40.96470714,162.12,162.06,0.2]
[1754257501035,26.0,162.09,162.06,0.2]
[1754257501215,51.7029021,162.08,162.06,0.2]
[1754257501416,8.7629021,162.07,162.06,0.2]
[1754257501619,14.92920694,162.07,162.06,0.2]
[1754257501819,17.40407194,162.07,162.06,0.2]
[1754257502119,17.43863949,162.07,162.06,0.2]
[1754257503621,20.65962107,162.07,162.06,0.2]
[1754257504424,20.66288101,162.07,162.06,0.2]
[1754257504629,24.04972797,162.07,162.06,0.2]
[1754257505435,24.05014766,162.07,162.06,0.2]
[1754257505637,24.01516042,162.07,162.06,0.2]
[1754257506043,66.95516042,162.07,162.06,0.2]
[1754257511844,66.75516042,162.07,162.06,0.9]
[1754257512053,66.82570306,162.07,162.06,0.9]
[1754257512216,66.77516042,162.07,162.06,0.9]
[1754257512637,66.82570306,162.07,162.06,0.9]
[1754257513644,66.82570306,162.07,162.06,0.2]
[1754257514315,23.86570306,162.07,162.06,0.2]
[1754257514518,66.82570306,162.07,162.06,0.2]
[1754257516846,66.80295887,162.07,162.06,0.2]
[1754257517031,66.77516042,162.07,162.06,0.2]
[1754257517443,66.80295887,162.07,162.06,0.2]
[1754257517947,83.58764284,162.07,162.06,0.2]
[1754257524747,80.22041166,162.07,162.06,0.2]
[1754257525434,80.39261321,162.07,162.05,0.2]
[1754257525636,14.75208266,162.06,162.05,0.2]
[1754257525835,14.790116,162.06,162.05,0.2]
[1754257526031,14.75208266,162.06,162.05,0.2]
[1754257526251,14.790116,162.06,162.05,0.2]
[1754257526642,17.265134,162.06,162.05,0.2]
[1754257527362,13.11089044,162.06,162.05,0.2]
[1754257527549,17.25287403,162.06,162.05,0.2]
[1754257527947,17.24237381,162.06,162.05,0.2]
[1754257530463,17.20434047,162.06,162.05,0.2]
[1754257531966,17.23776811,162.06,162.05,0.2]
[1754257538071,14.76275011,162.06,162.05,0.2]
[1754257542273,14.76275011,162.06,162.03,0.77]
[1754257542274,16.78468397,162.04,162.03,0.06]
[1754257542453,26.0,162.01,161.99,0.91]
[1754257542652,57.70868412,162.0,161.99,0.91]
[1754257543248,57.81068401,162.0,161.99,0.91]
[1754257544175,14.85068401,162.0,161.99,0.91]
[1754257544853,14.74868412,162.0,161.99,0.91]
[1754257545043,14.85068401,162.0,161.99,0.91]
[1754257545578,19.81578699,162.0,161.99,0.91]
[1754257545983,14.85068401,162.0,161.99,0.91]
[1754257547070,14.85549915,162.0,161.99,0.91]
[1754257549572,8.86957853,162.0,161.99,0.91]
[1754257549751,14.85549915,162.0,161.99,0.91]
[1754257550579,14.75349926,162.0,161.99,0.91]
[1754257550881,14.82464164,162.0,161.99,0.91]
[1754257552182,14.82464164,162.0,161.99,0.2]
[1754257552481,57.71349926,162.0,161.99,0.91]
[1754257552651,57.78464164,162.0,161.99,0.91]
[1754257552855,57.71349926,162.0,161.99,0.91]
[1754257553256,57.78464164,162.0,161.99,0.91]
[1754257557785,14.82464164,162.0,161.99,0.91]
[1754257559287,14.82464164,162.0,161.99,0.2]
[1754257561185,14.82464164,162.0,161.99,0.91]
[1754257563168,104.72464164,162.0,161.99,0.91]
[1754257563873,130.65349926,162.0,161.99,0.91]
[1754257564285,130.65349926,162.0,161.99,0.2]
[1754257564465,104.73852752,162.0,161.99,0.91]
[1754257572099,104.73852752,162.0,161.99,0.2]
[1754257574909,104.73852752,162.0,161.99,0.9]
[1754257576999,104.73852752,162.0,161.99,0.2]
[1754257577915,147.69852752,162.0,161.99,0.9]
[1754257578982,104.73852752,162.0,161.99,0.9]
[1754257579307,14.83852752,162.0,161.99,0.9]
[1754257579490,10.12790421,162.0,161.99,0.9]
[1754257579807,10.21620944,162.0,161.99,0.9]
[1754257579991,10.12790421,162.0,161.99,0.9]
[1754257582609,10.21620944,162.0,161.99,0.9]
[1754257583002,36.21620944,162.0,161.99,0.9]
[1754257583580,10.21620944,162.0,161.99,0.9]
[1754257583812,36.21620944,162.0,161.99,0.9]
[1754257587611,40.84770562,162.0,161.99,0.9]
[1754257591523,40.84643471,162.0,161.99,0.9]
[1754257592320,34.86051409,162.0,161.99,0.9]
[1754257592620,40.84643471,162.0,161.99,0.9]
[1754257597224,40.84404236,162.0,161.99,0.9]
[1754257600022,36.21620944,162.0,161.99,0.9]
[1754257600225,40.84301344,162.0,161.99,0.9]
[1754257607330,40.84199254,162.0,161.99,0.9]
[1754257623418,40.84199254,162.0,161.99,0.2]
[1754257624128,40.84199254,162.0,161.99,0.92]
[1754257631528,40.8518327,162.0,161.99,0.92]
[1754257632441,40.8518327,162.0,161.99,0.2]
[1754257632656,41.0518327,162.0,161.99,0.2]
[1754257633019,40.96352747,162.0,161.99,0.2]
[1754257633243,41.05035806,162.0,161.99,0.2]
[1754257634131,40.85035806,162.0,161.99,0.2]
[1754257637960,40.76352747,162.0,161.99,0.2]
[1754257638252,40.85102165,162.0,161.99,0.2]
[1754257639451,40.85102165,162.0,161.99,0.89]
[1754257643659,40.85102165,162.0,161.99,0.2]
[1754257644059,40.76352747,162.0,161.99,0.2]
[1754257644957,40.85072303,162.0,161.99,0.2]
[1754257653376,40.85072303,162.0,161.99,0.89]
[1754257655477,40.85072303,162.0,161.99,0.2]
[1754257657978,40.85072303,162.0,161.99,0.89]
[1754257658177,40.85072303,162.0,161.99,0.2]
[1754257665572,40.85072303,162.0,161.99,0.85]
[1754257665774,40.85072303,162.0,161.99,0.2]
[1754257667877,40.85072303,162.0,161.99,0.85]
[1754257669878,40.84839188,162.0,161.99,0.85]
[1754257675809,40.85067703,162.0,161.99,0.85]
[1754257679125,46.05052917,162.0,161.99,0.85]
[1754257679330,40.85067703,162.0,161.99,0.85]
[1754257686527,40.85196096,162.0,161.99,0.85]
[1754257688502,40.7647654,162.0,161.99,0.85]
[1754257689130,40.85209534,162.0,161.99,0.85]
[1754257689636,36.21523415,162.0,161.99,0.85]
[1754257690518,40.85179832,162.0,161.99,0.85]
[1754257698140,8.8658777,162.0,161.99,0.85]
[1754257698333,4.72389411,162.0,161.99,0.85]
[1754257698744,4.00389411,162.0,161.99,0.85]
[1754257699716,4.09116358,162.0,161.99,0.85]
[1754257703719,4.09116358,162.0,161.99,24.23792664]
[1754257703919,0.08726947,162.0,161.99,24.23792664]
[1754257704232,0.03,162.03,162.0,16.78468397]
[1754257704433,0.03,162.03,162.0,17.50468397]
[1754257704626,0.07799821,162.03,162.01,0.72]
[1754257704828,0.07799821,162.03,162.01,18.224684]
[1754257705040,0.07799821,162.03,162.02,0.72]
[1754257722058,0.07799821,162.03,162.01,42.9]
[1754257722253,0.07799821,162.03,162.01,43.62]
[1754257723694,0.07799821,162.03,162.02,0.72]
[1754257723969,0.07799821,162.03,162.02,17.50468397]
[1754257724442,0.07799821,162.03,162.02,17.46468397]
[1754257726971,0.07799821,162.03,162.02,23.45060459]
[1754257727340,0.07799821,162.03,162.02,17.46468397]
[1754257748193,0.07799821,162.03,162.02,23.45060459]